Cogmind - Beta 14 @@@ ROGUE MODE // 2024.11.13 @ 04:20:27 Player: WazdakkaGutsmek Result: Destroyed by Y-54 Guardian with Flak Gun Performance ------------- Evolutions (3) 1500 Regions Visited (9) 1800 Robots Destroyed (99) 495 Value Destroyed (3306) 3306 Prototype IDs (25) 500 Alien Tech Used (0) 0 Bonus (1847) 1847 TOTAL SCORE: 9448 Bonus ------- High Alert Combat Kills 156 Follower Combat Kills 291 Entered Garrisons 400 Used RIF Installer 1000 Cogmind --------- Core Integrity 0/700 Matter 205/300 Energy 340/340 System Corruption 9% Temperature Cool (12) Movement Treading (240) Ox1 Location -7/Factory Parts ------- > --- POWER (1) -------- Particle Reactor > --- PROPULSION (2) --- Improved Treads Medium Treads > --- UTILITY (8) ------ Improved Cooling System (fused) High-capacity Storage Unit Quantum Capacitor Improved Light Armor Plating Hacking Suite Relay Coupler [Swarmer] (23) Relay Coupler [Sentry] (24) > --- WEAPON (2) ------- Improved Remote Datajack > --- INVENTORY (20) --- Light Angular Momentum Engine Advanced Cryofiber Web Improved Signal Interpreter Quantum Capacitor Improved Transmission Jammer Makeshift Cloaking Device Relay Coupler [NC] (31) Relay Coupler [Swarmer] (48) Relay Coupler [Grunt] (33) Relay Coupler [Sentry] (24) Phase Gun Quantum Rifle Heavy Gauss Cannon Improved Datajack Force Lance Peak State ------------ > --- POWER ------------ Particle Reactor > --- PROPULSION ------- Improved Treads Medium Treads > --- UTILITY ---------- Improved Cooling System High-capacity Storage Unit Quantum Capacitor Improved Light Armor Plating Hacking Suite Relay Coupler [Swarmer] Relay Coupler [Sentry] > --- WEAPON ----------- Heavy Disruptor Cannon > --- INVENTORY -------- Light Angular Momentum Engine Advanced Cryofiber Web High-capacity Matter Pod Improved Signal Interpreter Quantum Capacitor Improved Transmission Jammer Makeshift Cloaking Device Relay Coupler [NC] Relay Coupler [Swarmer] Relay Coupler [Grunt] Relay Coupler [Sentry] Phase Gun Quantum Rifle Heavy Gauss Cannon Improved Datajack Improved Remote Datajack Force Lance [Rating: 69] Favorites ----------- Power Ion Engine Engine Ion Engine Power Core Neutrino Core Reactor Particle Reactor Propulsion Light Treads Treads Light Treads Leg Aluminum Leg Wheel Armored Wheel Hover Unit Antigrav System Utility High-capacity Storage Unit Device Structural Scanner Storage High-capacity Storage Unit Hackware Hacking Suite Protection Light Armor Plating Weapon Medium Laser Energy Gun Medium Laser Energy Cannon Plasma Cannon Ballistic Gun Assault Rifle Ballistic Cannon Flak Cannon Launcher Rocket Launcher Special Weapon Improved Remote Datajack Special Melee Weapon Improved Datajack Build | -11 -10 -10 -10 -9 -8 -8 -7 -7 -7 ------- Run | Yrd Mat Min Exi Min Mat Gar Fac Gar Fac Slots Evolved 6 | . . . . . 4 . 2 . . Power . | . . . . . . . . . . Propulsion . | . . . . . . . . . . Utility 6 | . . . . . 4 . 2 . . Weapon . | . . . . . . . . . . Parts Attached 80 | . 4 1 2 2 23 4 14 27 3 Power 8 | . . 1 . . 3 1 . 3 . Engine 5 | . . 1 . . 2 . . 2 . Core 2 | . . . . . 1 1 . . . Reactor 1 | . . . . . . . . 1 . Propulsion 13 | . 2 . . . 5 . 1 5 . Treads 11 | . 2 . . . 5 . 1 3 . Leg . | . . . . . . . . . . Wheel 1 | . . . . . . . . 1 . Hover 1 | . . . . . . . . 1 . Flight . | . . . . . . . . . . Utility 30 | . 2 . 1 . 10 2 4 9 2 Device 10 | . 1 . . . 3 1 . 5 . Storage 2 | . 1 . 1 . . . . . . Processor . | . . . . . . . . . . Hackware 7 | . . . . . 3 . 2 1 1 Protection 11 | . . . . . 4 1 2 3 1 Artifact . | . . . . . . . . . . Weapon 29 | . . . 1 2 5 1 9 10 1 Energy Gun 2 | . . . . 1 . . . 1 . Energy Cannon 7 | . . . . . 2 . 2 3 . Ballistic Gun 3 | . . . . 1 1 . . 1 . Ballistic Cannon 9 | . . . . . 1 . 4 4 . Launcher 3 | . . . . . 1 1 1 . . Special Weapon 4 | . . . . . . . 2 1 1 Impact Weapon . | . . . . . . . . . . Slashing Weapon . | . . . . . . . . . . Piercing Weapon . | . . . . . . . . . . Special Melee Weapon 1 | . . . 1 . . . . . . Unidentified Prototypes . | . . . . . . . . . . Parts Lost 32 | . . . . 1 10 . 6 15 . Power 4 | . . . . . 2 . . 2 . Propulsion 7 | . . . . . 3 . 2 2 . Utility 14 | . . . . . 3 . 3 8 . Weapon 7 | . . . . 1 2 . 1 3 . Highest Loss Streak 6 | . . . . 1 5 . 3 6 . To Critical Strikes 1 | . . . . . . . . 1 . Average Slot Usage (%) 91 | . 99 100 100 99 96 99 87 78 76 Engine 7 | . 14 14 14 14 5 5 . 5 . Core 1 | . . . . . 2 3 7 . . Treads 16 | . 7 28 28 28 17 18 13 6 15 Leg 1 | . 20 . . . . . . . . Hover 1 | . . . . . . . . 5 . Device 12 | . 13 14 14 14 8 9 13 11 15 Storage 9 | . 14 14 14 14 9 9 7 7 7 Hackware 11 | . . . . . 23 18 18 13 15 Protection 6 | . . . . . 9 17 9 7 7 Energy Gun 7 | . 14 14 14 22 4 . . 2 . Energy Cannon 2 | . . . . . 4 4 4 3 6 Ballistic Gun 4 | . 14 14 4 4 . 9 2 . . Ballistic Cannon 3 | . . . . . 8 . 7 5 . Special Melee Weapon 1 | . . . 9 . . . . . . Peak Build Rating 69 | . 7 9 15 15 37 37 49 65 69 Average Rating 31 | . 6 8 13 14 30 34 43 49 64 On Entrance 23 | 6 6 7 9 15 15 36 36 42 65 Naked Turns . | . . . . . . . . . . Heaviest Build 84 | 12 48 50 50 51 70 69 75 84 84 Greatest Support 51 | 20 40 40 40 40 42 42 42 51 51 Greatest Overweight (x) 27 | . 2 1 1 1 3 1 3 27 1 Average Overweight (x) 1 | . 1 1 1 1 1 1 1 6 1 Largest Inventory Capacity 20 | . 20 20 20 20 20 20 20 20 20 Average Capacity 19 | . 17 20 20 20 20 20 20 20 20 Most Carried 20 | . 7 10 16 16 20 20 20 20 19 Average Carried 14 | . 4 8 12 15 16 18 17 14 18 Final Capacity 20 | 8 20 20 20 20 20 20 20 20 20 Final Carried 20 | 6 3 8 15 16 20 18 16 19 16 Class Distribution -------------------- 38% | Mutant 33% | Hacker-Mutant 15% | Bothacker-Mutant 11% | Scavenger-Mutant Dominant Class ---------------- Mutant | -10/Materials Mutant | -10/Mines Mutant | -10/Exiles Mutant | -9/Mines Hacker-Mutant | -8/Materials Scavenger-Mutant | -8/Garrison Hacker-Mutant | -7/Factory Bothacker-Mutant | -7/Garrison Bothacker-Mutant | -7/Factory Resources | -11 -10 -10 -10 -9 -8 -8 -7 -7 -7 ----------- Run | Yrd Mat Min Exi Min Mat Gar Fac Gar Fac Matter Collected 2819 | 200 121 30 . 40 690 78 812 648 200 Remotely 786 | . . . . . . 8 778 . . Salvage Created 3163 | . 235 178 . 32 1100 125 736 757 . Parts 174 | . 12 14 . 3 65 12 41 27 . Haulers Intercepted 5 | . 1 . . . 2 . 2 . . Recyclers Shooed 2 | . . . . . 1 . 1 . . Parts Field Recycled . | . . . . . . . . . . Retrieved Matter . | . . . . . . . . . . Parts Self-Destructed . | . . . . . . . . . . Prevented . | . . . . . . . . . . Kills | -11 -10 -10 -10 -9 -8 -8 -7 -7 -7 ------- Run | Yrd Mat Min Exi Min Mat Gar Fac Gar Fac Combat Hostiles Destroyed 81 | . 4 6 . 1 29 10 13 18 . Guns 18 | . 4 6 . 1 6 1 . . . Cannons 48 | . . . . . 20 . 10 18 . AOE 13 | . . . . . 2 9 2 . . Classes Destroyed 12 | . 3 2 . . 6 . . 1 . Worker 2 | . . . . . 2 . . . . Builder 6 | . . 1 . . . . 5 . . Hauler 5 | . 1 . . . 2 . 2 . . Recycler 3 | . . . . . 1 . 2 . . Watcher 2 | . 1 . . . . . 1 . . Swarmer 19 | . . 3 . . 8 7 . 1 . Grunt 42 | . 4 3 . 1 13 3 7 11 . Brawler 2 | . . . . . . . . 2 . Duelist 4 | . . . . . 1 . . 3 . Sentry 7 | . . . . . 5 . 2 . . Hunter 4 | . . . . . 1 . 3 . . Programmer 3 | . . . . . 1 . 1 1 . Best Kill Streak 8 | . 2 3 . 1 7 7 8 6 . Combat Bots Only 7 | . 2 3 . 1 7 7 6 6 . Max Kills in Single Turn 3 | . 1 1 . 1 2 2 3 1 . Gunslinging . | . . . . . . . . . . Exploded 2 | . . . . . 2 2 1 . . Melee . | . . . . . . . . . . Uniques/NPCs Destroyed . | . . . . . . . . . . Combat | -11 -10 -10 -10 -9 -8 -8 -7 -7 -7 -------- Run | Yrd Mat Min Exi Min Mat Gar Fac Gar Fac Hostile Shots Fired 559 | . 31 19 . 11 167 28 144 123 36 Missed 148 | . 9 6 . 2 36 9 57 18 11 Damage Taken 5888 | . 281 142 . 108 1748 306 987 2137 179 Core 1002 | . 36 47 . 38 139 39 124 519 60 Absorbed by Shields . | . . . . . . . . . . Redirected to Shielding 203 | . . . . . . . 100 103 . Ignored by Resistances 28 | . . . . . . . . 28 . Core Remaining (%) 72 | 100 . . . 51 . 67 . . . Volleys Fired 300 | . 27 11 . 4 105 14 56 83 . Largest 2 | . 2 2 . 2 2 2 2 2 . Hottest 141 | . 70 70 . 70 124 108 128 141 . Shots Fired 546 | . 53 22 . 7 192 26 105 140 1 Gun 165 | . 53 22 . 7 47 14 7 15 . Cannon 359 | . . . . . 143 2 90 123 1 Launcher 16 | . . . . . 2 10 4 . . Special 6 | . . . . . . . 4 2 . Kinetic 309 | . 27 11 . 3 105 14 66 83 . Thermal 201 | . 26 11 . 4 72 2 31 55 . Explosive 16 | . . . . . 2 10 4 . . Electromagnetic 14 | . . . . . 13 . . . 1 Robot Hit Streak 10 | . 10 9 . 8 8 4 7 10 . Robot Miss Streak 7 | . 3 1 . . 7 1 3 7 1 Penetration Max 1 | . . . . . . . 1 1 . Secondary Targets 2 | . . 2 . . . . . . . Max Gunslinging Chain 1 | . . 1 . . . . . . . Capacitor 11 | . . . . . . . . 10 1 Shots Hit Robots 338 | . 35 17 8 7 122 12 62 75 . Core Hits 214 | . 12 11 . 2 109 13 34 33 . Critical Kills 3 | . 1 . . . . . 1 1 . Critical Parts Destroyed 5 | . . 1 . . . . . 4 . Critical Strikes 27 | . 2 3 . 2 3 . 3 14 . Burn 8 | . 1 2 . 2 3 . . . . Meltdown 1 | . . . . . . . 1 . . Destroy 7 | . 1 1 . . . . . 5 . Blast 11 | . . . . . . . 2 9 . Melee Attacks 8 | . . . 8 . . . . . . Impact . | . . . . . . . . . . Slashing . | . . . . . . . . . . Piercing . | . . . . . . . . . . Sneak Attacks 8 | . . . 8 . . . . . . Combat Hostiles 8 | . . . 8 . . . . . . Follow-up Attacks . | . . . . . . . . . . Damage Inflicted 8718 | . 465 240 . 87 2574 1050 2185 2117 . Guns 1571 | . 465 224 . 87 464 111 118 102 . Cannons 5440 | . . . . . 1937 . 1488 2015 . Explosions 1663 | . . . . . 161 939 563 . . Melee . | . . . . . . . . . . Ramming 44 | . . 16 . . 12 . 16 . . Kinetic 4474 | . 250 122 . 38 1418 111 1194 1341 . Thermal 2373 | . 215 102 . 49 819 . 412 776 . Explosive 1663 | . . . . . 161 939 563 . . Electromagnetic 164 | . . . . . 164 . . . . Impact . | . . . . . . . . . . Slashing . | . . . . . . . . . . Piercing . | . . . . . . . . . . Highest Corruption 20 | . . . . . . . . 20 9 Average Corruption 11 | . . . . . . . . 11 9 Corruption Purged 11 | . . . . . . . . 11 . Corruption Blocked . | . . . . . . . . . . Effects 74 | . . . . . . . . 70 4 Message Errors 21 | . . . . . . . . 20 1 Matter Fused 13 | . . . . . . . . 13 . Heat Flow Errors 13 | . . . . . . . . 12 1 Energy Discharges 10 | . . . . . . . . 10 . Parts Fused 1 | . . . . . . . . 1 . Data Loss (minor) 7 | . . . . . . . . 7 . Data Loss (major) 3 | . . . . . . . . 2 1 Misfires 4 | . . . . . . . . 3 1 Alerts 1 | . . . . . . . . 1 . Weapon Failures 1 | . . . . . . . . 1 . Overload Shots . | . . . . . . . . . . Overflow Damage 197 | . . . . . 29 114 35 19 . Projectiles 80 | . . . . . 29 . 32 19 . Explosions 117 | . . . . . . 114 3 . . Melee . | . . . . . . . . . . Knockbacks 67 | . . . . . 53 . 6 8 . Impact . | . . . . . . . . . . Kinetic 63 | . . . . . 49 . 6 8 . Secondary 4 | . . . . . 4 . . . . Self-Inflicted Damage 124 | . . . . . . 124 . . . Shots 3 | . . . . . . 3 . . . Rammed 10 | . . 3 . . 4 . 3 . . Targets Rammed 11 | . . 4 . . 4 . 3 . . Kicked . | . . . . . . . . . . Crushed 1 | . . 1 . . . . . . . Highest Temperature 512 | . 81 126 . 52 450 18 126 512 224 Average Temperature 115 | . 23 49 . 21 142 10 38 145 104 Received Heat Transfer 2088 | . 180 78 . 72 729 45 285 639 60 Effects 7 | . . . . . 5 . . 2 . Shutdowns 2 | . . . . . 2 . . . . Energy Bleed 2 | . . . . . 2 . . . . Matter Decay 1 | . . . . . . . . 1 . Damage (minor) 2 | . . . . . 1 . . 1 . Siege Activations . | . . . . . . . . . . Robots Corrupted 1 | . . . . . 1 . . . . Combat Hostiles 1 | . . . . . 1 . . . . Parts Fried . | . . . . . . . . . . Impact Corruptions . | . . . . . . . . . . Robots Melted 1 | . . . . . . . 1 . . Combat Hostiles 1 | . . . . . . . 1 . . Parts Melted 11 | . 2 1 . . . . 7 1 . Heat Transferred 5555 | . 703 444 . 296 1851 . 800 1461 . Parts Sabotaged . | . . . . . . . . . . Parts Stolen . | . . . . . . . . . . Parts Stripped . | . . . . . . . . . . Power Chain Reactions . | . . . . . . . . . . Alert | -11 -10 -10 -10 -9 -8 -8 -7 -7 -7 ------- Run | Yrd Mat Min Exi Min Mat Gar Fac Gar Fac Peak Influence 1334 | . 95 183 . 100 353 548 399 1334 715 Initial 700 | . . 18 . . . 229 287 263 700 Average 342 | . 33 65 . 44 107 351 233 804 701 Maximum Alert Level 4 | . . . . . 1 2 1 4 3 Low Security (%) 50 | . 100 100 . 100 80 . 47 . . Level 1 18 | . . . . . 19 49 52 9 . Level 2 12 | . . . . . . 50 . 33 . Level 3 13 | . . . . . . . . 40 100 Level 4 4 | . . . . . . . . 16 . Level 5 . | . . . . . . . . . . High Security . | . . . . . . . . . . Max Security . | . . . . . . . . . . Squads Dispatched 17 | . . 1 . . 8 . 7 . 1 Investigation 3 | . . 1 . . 1 . . . 1 Extermination 2 | . . . . . . . 2 . . Reinforcement 7 | . . . . . 4 . 3 . . Assault . | . . . . . . . . . . Garrison 5 | . . . . . 3 . 2 . . Intercept . | . . . . . . . . . . Searches Triggered . | . . . . . . . . . . Construction Impeded 1 | . . . . . . . 1 . . Haulers Reinforced 1 | . . . . . . . 1 . . Active Scanning Responses . | . . . . . . . . . . Cargo Convoy Interrupts . | . . . . . . . . . . Stealth | -11 -10 -10 -10 -9 -8 -8 -7 -7 -7 --------- Run | Yrd Mat Min Exi Min Mat Gar Fac Gar Fac Distress Signals 5 | . . . . . 4 . 1 . . Communications Jammed . | . . . . . . . . . . Distress Signals . | . . . . . . . . . . Times Spotted 134 | . 8 5 . 3 45 10 19 43 1 Peak Tracking Total 9 | . 3 2 . 2 6 4 5 9 1 Tactical Retreats 29 | . . . . . 7 . 1 21 . Traps | -11 -10 -10 -10 -9 -8 -8 -7 -7 -7 ------- Run | Yrd Mat Min Exi Min Mat Gar Fac Gar Fac Traps Triggered 4 | . . . . . . 1 . 1 2 Indirectly . | . . . . . . . . . . Trap Hack Attempts . | . . . . . . . . . . Triggered . | . . . . . . . . . . Disarmed . | . . . . . . . . . . Reprogrammed 1 | . 1 . . . . . . . . Reused . | . . . . . . . . . . Traps Extracted . | . . . . . . . . . . Installed . | . . . . . . . . . . Triggered . | . . . . . . . . . . Machines | -11 -10 -10 -10 -9 -8 -8 -7 -7 -7 ---------- Run | Yrd Mat Min Exi Min Mat Gar Fac Gar Fac Machines Disabled 7 | . . 1 . 1 3 1 1 . . Max in Single Turn 1 | . . 1 . . 1 1 1 . . Garrison Relay 1 | . . . . . . . . 1 . Machines Repaired . | . . . . . . . . . . Machines Dismantled . | . . . . . . . . . . Machines Sabotaged . | . . . . . . . . . . Overloaded Fab Kills . | . . . . . . . . . . Hacking | -11 -10 -10 -10 -9 -8 -8 -7 -7 -7 --------- Run | Yrd Mat Min Exi Min Mat Gar Fac Gar Fac Machines Accessed 15 | . 2 1 1 . 6 1 2 1 1 Terminals 10 | . 2 . . . 5 1 . 1 1 Fabricators 1 | . . . . . . . 1 . . Repair Stations . | . . . . . . . . . . Recycling Units . | . . . . . . . . . . Scanalyzers . | . . . . . . . . . . Garrison Access 2 | . . . . . 1 . 1 . . Total Hacks 39 | . 4 1 1 . 25 1 2 2 3 Successful 20 | . 3 1 1 . 11 1 2 1 . Failed 19 | . 1 . . . 14 . . 1 3 Catastrophic 3 | . . . . . 2 . . . 1 Database Lockouts . | . . . . . . . . . . Manual 22 | . 2 . 1 . 17 1 1 . . Terminals 31 | . 4 . . . 21 1 . 2 3 Fabricators 1 | . . . . . . . 1 . . Repair Stations . | . . . . . . . . . . Recycling Units . | . . . . . . . . . . Scanalyzers . | . . . . . . . . . . Garrison Access 5 | . . . . . 4 . 1 . . Terminal Hacks 14 | . 3 1 1 . 7 1 . 1 . Robot Schematic 1 | . 1 . . . . . . . . Prototype ID Bank 1 | . . . . . 1 . . . . Open Door 1 | . . 1 . . . . . . . Branch Access Points 1 | . . . . . 1 . . . . Terminal Index 1 | . . . . . 1 . . . . Garrison Index 1 | . . . . . 1 . . . . Unreport Threat 3 | . . . . . 3 . . . . Locate Traps 1 | . 1 . . . . . . . . Reprogram Traps 1 | . 1 . . . . . . . . Garrison Registry 2 | . . . . . . 1 . 1 . Derelict Proto ID Bank 1 | . . . 1 . . . . . . Fabricator Hacks . | . . . . . . . . . . Repair Station Hacks . | . . . . . . . . . . Recycling Unit Hacks . | . . . . . . . . . . Scanalyzer . | . . . . . . . . . . Garrison Access Hacks 2 | . . . . . 1 . 1 . . Unlock Access 2 | . . . . . 1 . 1 . . Unauthorized Hacks 4 | . . . . . 3 . 1 . . Terminals 2 | . . . . . 2 . . . . Botnet 2 | . . . . . 2 . . . . Fabricators 1 | . . . . . . . 1 . . Liberate 1 | . . . . . . . 1 . . Repair Stations . | . . . . . . . . . . Recycling Units . | . . . . . . . . . . Scanalyzers . | . . . . . . . . . . Garrison Access 1 | . . . . . 1 . . . . Restock 1 | . . . . . 1 . . . . Data Cores Recovered . | . . . . . . . . . . Used . | . . . . . . . . . . Hacking Detections 9 | . 2 . . . 5 . . 1 1 Full Trace Events 2 | . . . . . 1 . . . 1 Feedback Events . | . . . . . . . . . . Feedback Blocked . | . . . . . . . . . . Robot Schematics Acquired 1 | . 1 . . . . . . . . Robots Built . | . . . . . . . . . . Authchips . | . . . . . . . . . . Time . | . . . . . . . . . . Total Robot Build Rating . | . . . . . . . . . . Part Schematics Acquired . | . . . . . . . . . . Parts Built . | . . . . . . . . . . Authchips . | . . . . . . . . . . Time . | . . . . . . . . . . Total Part Build Rating . | . . . . . . . . . . Parts Repaired . | . . . . . . . . . . Time . | . . . . . . . . . . Parts Recycled . | . . . . . . . . . . Recycled Matter . | . . . . . . . . . . Retrieved Matter . | . . . . . . . . . . Retrieved Components . | . . . . . . . . . . Parts Scanalyzed . | . . . . . . . . . . Part Schematics Acquired . | . . . . . . . . . . Parts Damaged . | . . . . . . . . . . Bothacking | -11 -10 -10 -10 -9 -8 -8 -7 -7 -7 ------------ Run | Yrd Mat Min Exi Min Mat Gar Fac Gar Fac Used RIF Installer 2 | . . . . . . 1 . 1 . Coupler Efficiency 1 | . . . . . . . . 1 . Robots Hacked 4 | . . . . . . . 2 2 . Non-combat . | . . . . . . . . . . Combat 4 | . . . . . . . 2 2 . Robot Hacks Applied 5 | . . . . . . . 3 2 . find_garrison 1 | . . . . . . . 1 . . amplify_resonance 1 | . . . . . . . . 1 . overwrite_iff 1 | . . . . . . . . 1 . formatsys_high 2 | . . . . . . . 2 . . Relay Couplers Released 12 | . . . . . 4 . . 8 . Machine Destruction 4 | . . . . . . . . 4 . Programmers 8 | . . . . . 4 . . 4 . Attached 4 | . . . . . . . 2 1 1 Fabnet Peak Effective % . | . . . . . . . . . . Robots Rewired 3 | . . . 3 . . . . . . Allies Hacked . | . . . . . . . . . . Hacks Repelled . | . . . . . . . . . . Allies | -11 -10 -10 -10 -9 -8 -8 -7 -7 -7 -------- Run | Yrd Mat Min Exi Min Mat Gar Fac Gar Fac Total Allies 8 | . . . 3 . . . 4 1 . Largest Group 3 | . . . 3 3 . . 2 2 . Highest-Rated Group 50 | . . . 50 50 . . 42 42 . Highest-Rated Ally 32 | . . . 21 21 . . 32 21 . Total Orders . | . . . . . . . . . . Ally Attacks 49 | . . . . 12 . . 17 20 . Total Damage 929 | . . . . 266 . . 357 306 . Kills 9 | . . . . 4 . . 3 2 . Allies Corrupted . | . . . . . . . . . . Allies Melted . | . . . . . . . . . . Intel | -11 -10 -10 -10 -9 -8 -8 -7 -7 -7 ------- Run | Yrd Mat Min Exi Min Mat Gar Fac Gar Fac Robot Analysis Total . | . . . . . . . . . . Derelict Logs Recovered 2 | . . 1 . 1 . . . . . Drone Launches . | . . . . . . . . . . Drone Recoveries . | . . . . . . . . . . Exploration | -11 -10 -10 -10 -9 -8 -8 -7 -7 -7 ------------- Run | Yrd Mat Min Exi Min Mat Gar Fac Gar Fac Turns Passed 8323 | . 595 755 1114 496 1447 435 1260 2113 108 Spaces Moved 2639 | 1 228 293 458 201 443 164 424 385 42 Core 55 | . . . . . . . . 55 . Treads 2337 | . 56 293 458 201 443 164 424 256 42 Legs 173 | 1 172 . . . . . . . . Wheels 70 | . . . . . . . . 70 . Hover 4 | . . . . . . . . 4 . Flight . | . . . . . . . . . . Fastest Speed 120 | 120 120 240 240 240 232 232 232 165 240 Average Speed 272 | 120 212 240 240 240 240 232 244 474 240 Slowest Speed 1400 | 120 260 240 240 240 400 232 385 1400 240 Overloaded Moves . | . . . . . . . . . . Propulsion Burnouts . | . . . . . . . . . . Robots Hopped . | . . . . . . . . . . Cave-ins Triggered . | . . . . . . . . . . Exploration Rate (%) 42 | 2 46 71 89 60 48 38 12 57 2 Regions Visited 9 Branch Regions 3 Pre-discovered Areas . | . . . . . . . . . . Known Exits Taken 2 | . . . . . 1 . 1 . . Unknown Exits Taken 5 | 1 1 1 1 1 . . . . . Scrap Searched . | . . . . . . . . . . Spaces Dug 3 | . . . . . . . 1 2 . Terrain Destroyed 127 | . . . . . 41 50 24 12 . Melee . | . . . . . . . . . . Projectile 43 | . . . . . 19 . 12 12 . AOE 84 | . . . . . 22 50 12 . . Terrain Rammed . | . . . . . . . . . . Walls Destroyed . | . . . . . . . . . . Machines Disabled . | . . . . . . . . . . Actions | -11 -10 -10 -10 -9 -8 -8 -7 -7 -7 --------- Run | Yrd Mat Min Exi Min Mat Gar Fac Gar Fac Total 3238 | . 288 319 473 208 624 196 535 545 50 Wait 109 | . 22 3 . . 34 . 30 17 3 Move 2632 | . 227 292 457 200 443 163 424 384 42 Hop . | . . . . . . . . . . Pick Up 52 | . 1 6 5 2 11 5 5 17 . Fast Attach 17 | . 1 . . . 6 . 3 6 1 Attach 39 | . 2 1 . 1 8 2 6 17 2 Detach 7 | . 2 1 . . . 1 . 3 . Swap 24 | . 1 . 2 1 9 2 5 4 . Drop 29 | . 5 1 1 . 4 7 3 6 2 Fire 300 | . 27 11 . 4 105 14 56 83 . Melee 8 | . . . 8 . . . . . . Ram . | . . . . . . . . . . Kick . | . . . . . . . . . . Crush 11 | . . 4 . . 4 . 3 . . Escape Stasis 10 | . . . . . . 2 . 8 . Rewire . | . . . . . . . . . . Trap . | . . . . . . . . . . Miscellaneous . | . . . . . . . . . . Route ------- -11/Scrapyard -10/Materials -10/Mines -10/Exiles -9/Mines -8/Materials (discovered 2 exits: *Fac / Gar) -8/Garrison (discovered 3 exits: *Fac x3) -7/Factory -7/Garrison (discovered 3 exits: *Fac x3) -7/Factory History --------- Turn | Location | Event 1 | -11/Scrapyard | Discovered new exit (range 0) 1 | -11/Scrapyard | Entered Materials 315 | -10/Materials | Build established: Mutant 560 | -10/Materials | Discovered new exit (range 16) 596 | -10/Materials | Entered Mines 638 | -10/Mines | Met a Derelict shopkeep closing up shop 906 | -10/Mines | Learned Materials stockpile data 1341 | -10/Mines | Deemed a non-threat by the Exiles lab entrance 1341 | -10/Mines | Discovered new exit (range 5) 1351 | -10/Mines | Entered Exiles 1351 | -10/Exiles | Found Exiles lab destroyed 1596 | -10/Exiles | Opened EX-Vault 1603 | -10/Exiles | Found Prototype Storage 1607 | -10/Exiles | Identified Lightpack 2.0 2434 | -10/Exiles | Discovered new exit (range 14) 2465 | -10/Exiles | Entered Mines 2465 | -9/Mines | Accompanied by 3 allies 2501 | -9/Mines | Learned Materials stockpile data 2785 | -9/Mines | Received a Rocket Launcher from a helpful Derelict 2942 | -9/Mines | Discovered new exit (range 8) 2961 | -9/Mines | Entered Materials 2961 | -8/Materials | Evolved 4 slots: Utility x4 3304 | -8/Materials | Build established: Hacker-Mutant 3748 | -8/Materials | Lost 3 parts (1p1n1w) 3798 | -8/Materials | Discovered new exit (range 15) 4193 | -8/Materials | Garrison activated, responded to threat 4261 | -8/Materials | Lost 5 parts (1p1n3u) 4274 | -8/Materials | Destroyed 7 combat bots 4408 | -8/Materials | Identified exit to Garrison 4408 | -8/Materials | Entered Garrison 4447 | -8/Garrison | Discovered new exit (range 58) 4447 | -8/Garrison | Discovered new exit (range 61) 4447 | -8/Garrison | Discovered new exit (range 41) 4536 | -8/Garrison | Installed Relay Interface Framework 4544 | -8/Garrison | Build established: Scavenger-Mutant 4604 | -8/Garrison | Triggered checkpoint 4613 | -8/Garrison | Triggered checkpoint 4646 | -8/Garrison | Destroyed 7 combat bots 4843 | -8/Garrison | Entered Factory 4843 | -7/Factory | Evolved 2 slots: Utility x2 5100 | -7/Factory | Build established: Hacker-Mutant 5851 | -7/Factory | Lost 3 parts (1n1u1w) 5912 | -7/Factory | Garrison activated, responded to threat 6085 | -7/Factory | Garrison activated, responded to threat 6103 | -7/Factory | Identified exit to Garrison 6103 | -7/Factory | Entered Garrison 6103 | -7/Garrison | Accompanied by 2 allies 6129 | -7/Garrison | Triggered checkpoint 6221 | -7/Garrison | Triggered checkpoint 6239 | -7/Garrison | Triggered checkpoint 6301 | -7/Garrison | Triggered checkpoint 6317 | -7/Garrison | Core integrity fell below 50% 6345 | -7/Garrison | Lost 6 parts (1p1n3u1w) 6381 | -7/Garrison | Triggered checkpoint 6403 | -7/Garrison | System corruption reached 10% 6418 | -7/Garrison | Core integrity fell below 20% 6445 | -7/Garrison | Lost 6 parts (1n3u2w) 6676 | -7/Garrison | Discovered new exit (range 67) 6676 | -7/Garrison | Discovered new exit (range 57) 6676 | -7/Garrison | Discovered new exit (range 19) 6762 | -7/Garrison | Expanded RIF knowledge: Coupler Efficiency 6874 | -7/Garrison | Build established: Scavenger-Mutant 7013 | -7/Garrison | Triggered checkpoint 7153 | -7/Garrison | Found Quantum Capacitor 7227 | -7/Garrison | Found Quantum Capacitor 7344 | -7/Garrison | Build established: Bothacker-Mutant 8216 | -7/Garrison | Entered Factory 8324 | -7/Factory | Destroyed by Y-54 Guardian with Flak Gun Last Messages --------------- 08279_ Connecting with Terminal... 08279_ Current location identified: Factory 08279_ ALERT: Suspicious activity at Terminal F014. Dispatching Investigation squad. 08284_ System corrupted: Substantial component data lost. 08298_ Triggered Blade Trap. 08298_ Massive razor-sharp blades shoot up from within the floor. 08300_ Triggered Blade Trap. 08300_ Massive razor-sharp blades shoot up from within the floor. 08300_ Imp. Light Armor Plating severed. 08303_ Acquired Imp. Light Armor Plating. 08317_ Dropped Hvy. Disruptor Cannon. 08318_ ALERT: All DSF locations entering lockdown mode. 08320_ BBX>H3KZLU/GTP6KQPJNB8Z5&=L|Z/>NOULBEQ 08320_ Dropped Hcp. Matter Pod. 08321_ Extracted 200 matter. Map ----- +----------------------------------------------------+ | ??????????????????????# #?????????????? | | ??????????????????????# #?????????????? | | ??????????????????????# #?????????????? | | ??????????????????????# #?????????????? | | ??????????????????????# ##########????? | | ??????????????????????# #????? | | ??????????????????????# #????? | | ??????????????????????# #????? | | ??????????????????????# #????? | | ??????????????????????# #????? | | ?????????????????? ??# #################????? | | ????????????????### ### # ! #???????? | | ???????????? u # """"" #???????? | | ???????????? + """ ""T"" #???????? | | ???????????? # """ #???????? | | ????????????? # """ ! #???????? | | ????????????? # #???????? | | ?????????????? #^""" """ #???????? | | ????????????? # """ """ #???????? | | ????????????? + """ """ #???????? | | ???????????? # #???????? | | ???????????? + ^ #???????? | | ???????????? # #???????? | | ???????????? ##############???????? | | ??????????????###########t#+######???????????????? | | ???????????????????# T @] Y#???????????????? | | ???????????????????# ##???????????????? | | ???????????????????# " " " " #????????????????? | | ???????????????????# " " " " #????????????????? | | ???????????????????# " " " " #????????????????? | | ???????????????????# " " " " #????????????????? | | ???????????????????# " " " " == #????????????????? | | ???????????????????# " " " " = #????????????????? | | ???????????????????# " " " " #????????????????? | | ?????????????????????" " " " #????????????????? | | ???????????????????????" " " #????????????????? | | ????????????????????????? ?? #????????????????? | | ?????????????????????????##??####????????????????? | | ?????????????????????????????????????????????????? | | ?????????????????????????????????????????????????? | | | | | | | | | | | | | | | | | | | | | +----------------------------------------------------+ Best States ------------- Heat Dissipation 61 Coolant Potential 65 Energy Generation 23 Energy Capacity 340 Matter Stores 300 Matter Capacity 300 Sight Range 16 Terrain Scan Density 10 Armor Coverage 375 Resistance: TH 10 Weapon Shielding 66 Evasion (%) 55 Recoil Reduction 2 Offensive Hacking 21 Defensive Hacking 11 Relay Coupler Types 2 Relay Coupler Value 47 Item Schematics ----------------- None Robot Schematics ------------------ M-13 Machinist | -10/Materials | Hacked Fabricated ------------ Nothing Alien Tech Used ----------------- None Achievements -------------- None Challenges ------------ None Game ------ Seed QuantumPitchforkMatrix Manual? 0 Play Time 00:47:39 Cumulative 86.4 hours Start 2024.11.13 @ 03:24:27 End 2024.11.13 @ 04:20:27 Sessions 1 Manual Loads 0 Difficulty Rogue Special Mode None Game No. 71 Rogue 53 Adventurer 16 Explorer 2 Win Type - Total 3 Types 3/0/0/0/0/0/0/0/0 Lore% 15 Gallery% 52 Achievement% 49 Wizard Run 0 Options --------- Layout 2 ASCII 0 Keyboard 0 Movement Numpad Keybinds 1 Fullscreen 1 Font 24/Terminus Map View 50x44 Zoom Use 0% Tactical HUD 1 Map Filters NONE Filters NONE Steam 1 RUN: 0c08376a-8e32-489d-a4ae-a9c9c8c4e6f2